bitfinex/quotes_ETHUSD_20250220
["timestamp","ask_amount","ask_price","bid_price","bid_amount"]
[1740012491671,3.66336,2729.8,2729.2,0.8099]
[1740012491874,0.05947405,2729.7,2729.3,3.66392]
[1740012492284,3.66308,2730.0,2729.3,4.47771]
[1740012492483,0.05808895,2729.6,2729.3,4.47771]
[1740012492684,3.66308,2730.0,2729.3,4.47771]
[1740012492884,0.05808895,2729.5,2729.3,4.47771]
[1740012493084,0.7903,2730.2,2729.3,0.81379]
[1740012493264,0.05691451,2729.4,2729.2,0.8099]
[1740012493459,3.66323,2729.9,2729.3,0.265]
[1740012493689,7.32646,2729.9,2729.3,0.265]
[1740012493988,3.66323,2729.9,2729.3,0.265]
[1740012494296,3.66328,2729.8,2729.3,0.265]
[1740012494598,3.66341,2729.7,2729.3,0.265]
[1740012494994,0.732664,2729.7,2729.2,0.8099]
[1740012495197,3.6638,2729.4,2729.2,0.265]
[1740012498106,3.66359,2729.6,2729.2,0.265]
[1740012498598,3.66392,2729.4,2729.2,0.265]
[1740012498799,3.66391,2729.4,2729.0,0.265]
[1740012499305,0.05420267,2729.3,2729.0,0.265]
[1740012500593,0.05420267,2729.3,2729.1,4.4924]
[1740012500902,0.05420267,2729.3,2729.1,4.96814]
[1740012501091,3.66349,2729.7,2729.1,4.96814]
[1740012501280,0.05417339,2729.2,2729.1,4.4924]
[1740012501479,3.66349,2729.7,2729.1,0.8282]
[1740012501480,3.66355,2729.6,2729.1,0.8282]
[1740012501678,0.05417339,2729.2,2729.1,0.8282]
[1740012502004,3.66341,2729.7,2729.1,4.49236]
[1740012502299,3.66341,2729.7,2729.1,8.15647]
[1740012502509,0.05417339,2729.6,2729.2,0.842147]
[1740012502870,3.66348,2729.7,2729.2,0.842147]
[1740012503072,0.05230519,2729.5,2729.2,0.842147]
[1740012503394,0.05230519,2729.4,2729.2,0.842147]
[1740012503904,3.66372,2729.5,2729.1,0.8282]
[1740012504103,0.05230519,2729.3,2729.1,0.8282]
[1740012504279,7.32692,2729.7,2729.1,0.8282]
[1740012504485,0.05235649,2729.2,2729.1,0.8282]
[1740012504685,3.66382,2729.4,2729.1,0.8282]
[1740012504883,0.05235649,2729.2,2729.1,0.8282]
[1740012505082,3.66361,2729.6,2729.1,0.8282]
[1740012505293,0.05235649,2729.2,2729.1,0.8282]
[1740012505605,3.6637,2729.5,2729.1,0.8282]
[1740012505810,0.05235649,2729.2,2729.1,0.8282]
[1740012506109,3.6637,2729.5,2729.1,1.16883787]
[1740012506292,0.05235649,2729.2,2729.1,1.16883787]
[1740012506491,3.6637,2729.5,2729.1,1.16883787]
[1740012506711,0.05235649,2729.2,2729.1,1.16883787]
[1740012507012,3.6637,2729.5,2729.1,1.16883787]
[1740012507221,0.05235649,2729.2,2729.1,1.16883787]
[1740012507422,3.66406,2729.3,2729.1,0.34063787]
[1740012507588,0.05229054,2729.2,2729.1,0.34063787]
[1740012507778,0.05229054,2729.2,2729.1,0.61340455]
[1740012507980,3.66374,2729.5,2729.1,0.61340455]
[1740012508204,3.66354,2729.6,2729.1,1.43830455]
[1740012508398,0.05229054,2729.4,2729.1,1.43830455]
[1740012508605,0.05218791,2729.5,2729.1,1.43830455]
[1740012508787,3.66347,2729.7,2729.1,1.43830455]
[1740012509090,0.05218791,2729.4,2729.1,1.43830455]
[1740012509324,3.66369,2729.5,2729.2,0.27276668]
[1740012509616,4.406657,2729.7,2729.2,0.61340455]
[1740012509821,0.05223187,2729.4,2729.2,0.61340455]
[1740012510016,3.66347,2729.7,2729.2,0.61340455]
[1740012510221,0.05223187,2729.3,2729.2,0.61340455]
[1740012510512,3.66367,2729.6,2729.3,0.27276668]
[1740012510720,4.030017,2729.6,2729.3,0.27276668]
[1740012510894,7.43159,2729.9,2729.3,0.27276668]
[1740012511082,4.84541426,2730.1,2729.4,0.7787]
[1740012511277,3.66315,2729.9,2729.4,0.7787]
[1740012511482,3.66331,2729.8,2729.4,0.7787]
[1740012512020,7.32643,2729.9,2729.4,0.7787]
[1740012512193,3.66331,2729.8,2729.4,0.7787]
[1740012513220,3.66329,2729.8,2729.4,0.7787]
[1740012513513,3.66318,2729.9,2729.4,0.7787]
[1740012513686,7.32643,2729.9,2729.4,0.7787]
[1740012514084,3.66318,2729.9,2729.4,0.7787]
[1740012514281,0.05056862,2729.8,2729.7,3.6634]
[1740012514518,0.05056862,2729.8,2729.7,4.7262]
[1740012514814,3.66264,2730.3,2729.8,0.7978]
[1740012515016,9.0524,2730.5,2729.8,0.7978]
[1740012515219,0.04426495,2730.2,2729.8,0.7978]
[1740012515418,0.98476,2730.5,2729.8,0.7978]
[1740012515626,0.04426495,2730.1,2729.8,0.7978]
[1740012515791,3.66256,2730.4,2729.8,0.7978]
[1740012515989,0.04426495,2730.0,2729.9,0.34066207]
[1740012516190,7.32512,2730.4,2729.9,0.34066207]
[1740012516403,0.04426495,2730.0,2729.9,0.34066207]
[1740012516603,3.66256,2730.4,2729.9,0.61325621]
[1740012516804,0.04426495,2730.0,2729.9,0.61325621]
[1740012517024,3.66256,2730.4,2729.9,0.61325621]
[1740012517324,0.04504308,2730.0,2729.9,0.61325621]
[1740012517533,3.66261,2730.3,2729.9,0.61325621]
[1740012517703,0.04504308,2730.0,2729.9,0.61325621]
[1740012517902,3.66265,2730.3,2729.9,0.61325621]
[1740012518107,0.04505042,2730.0,2729.9,0.34066207]
[1740012518430,0.04505042,2730.0,2729.9,5.65419999]
[1740012518649,3.66234,2730.5,2729.9,5.65419999]
[1740012518853,3.66234,2730.5,2729.9,1.15716207]
[1740012518992,0.04478851,2730.4,2730.0,3.66291]
[1740012519189,5.39,2730.7,2730.1,3.66284]
[1740012519446,0.04478851,2730.3,2730.2,4.4565]
[1740012519594,5.39,2730.7,2730.2,0.7938]
[1740012519911,0.04483988,2730.3,2730.2,4.45653]
[1740012520218,0.1417461,2731.1,2730.3,3.66256]
[1740012520522,3.8032961,2731.1,2730.3,3.66256]
[1740012520721,4.80013571,2731.1,2730.3,3.66256]
[1740012520927,3.66171,2731.0,2730.4,3.66246]
[1740012521425,8.46176571,2731.1,2730.3,3.66256]
[1740012521630,3.6617,2731.0,2730.3,3.66256]
[1740012521811,3.8032761,2731.1,2730.3,3.66252]
[1740012521999,7.4649261,2731.1,2730.4,0.4901985]
[1740012522205,3.8032761,2731.1,2730.6,0.8309]
[1740012522831,0.1417461,2731.1,2730.6,0.8309]
[1740012523412,0.1417461,2731.1,2730.7,3.66205]
[1740012523998,0.1417461,2731.1,2730.6,0.8309]
[1740012524331,3.8032761,2731.1,2730.7,0.475821]
[1740012524835,0.1417461,2731.1,2730.7,0.475821]
[1740012524999,0.7735,2731.0,2730.2,6.3298]
[1740012525193,0.7735,2731.0,2730.3,3.66258]
[1740012525393,3.66195,2730.8,2730.2,6.60808419]
[1740012525593,0.7735,2731.0,2730.2,6.34308419]
[1740012525594,3.66233,2730.5,2730.2,6.34308419]
[1740012525798,3.66233,2730.5,2730.3,0.265]
[1740012526077,3.66215,2730.7,2730.3,0.265]
[1740012526200,3.66242,2730.5,2730.0,0.265]
[1740012526401,3.66247,2730.4,2730.0,0.265]
[1740012526601,7.32487,2730.5,2730.0,0.265]
[1740012526801,3.66249,2730.4,2730.0,0.265]
[1740012527021,3.66211,2730.7,2730.0,0.265]
[1740012527222,0.7829,2731.0,2730.1,1.157313]
[1740012527427,3.66216,2730.7,2730.1,1.157313]
[1740012527903,3.66194,2730.8,2730.1,4.820143]
[1740012528113,3.66194,2730.8,2730.2,4.1712043]
[1740012528316,3.66167,2731.0,2730.3,0.7645]
[1740012529100,3.66167,2731.0,2730.3,3.66257]
[1740012529301,0.04547092,2730.9,2730.5,0.8099]
[1740012529613,3.8032761,2731.1,2730.5,4.4722]
[1740012529828,0.04564702,2730.8,2730.6,0.44722]
[1740012530033,3.8032761,2731.1,2730.5,0.8099]
[1740012530339,0.04564702,2730.7,2730.5,4.47218]
[1740012530548,3.8032761,2731.1,2730.5,4.47218]
[1740012530851,3.70742439,2731.0,2730.5,0.8099]
[1740012531029,3.70742439,2731.0,2730.5,1.25714]
[1740012531431,0.04576439,2731.0,2730.5,1.25714]
[1740012532035,0.04576439,2731.0,2730.6,0.7886]
[1740012535448,3.70754439,2731.0,2730.6,0.7886]
[1740012536333,3.6618,2730.9,2730.6,0.7886]
[1740012536685,0.04442034,2730.8,2730.6,0.7886]
[1740012540464,3.70635034,2730.8,2730.2,3.5085143]
[1740012540632,0.04442034,2730.8,2730.3,6.09538073]
[1740012540827,0.04442034,2730.8,2730.4,4.47719]
[1740012541233,4.6005361,2731.1,2730.4,4.47719]
[1740012541448,0.04185929,2730.7,2730.4,4.47719]
[1740012541767,3.66167,2731.0,2730.5,0.97441707]
[1740012541926,0.04185929,2730.6,2730.4,0.8148]
[1740012542127,3.66194,2730.8,2730.4,0.8148]
[1740012542333,0.04185929,2730.5,2730.4,1.0798]
[1740012542661,0.04185929,2730.5,2730.4,0.8148]
[1740012542662,0.04185194,2730.5,2730.4,0.8148]
[1740012543061,3.66195,2730.8,2730.4,0.8148]
[1740012543264,0.0403511,2730.5,2730.1,6.0404]
[1740012543464,3.6624,2730.5,2730.1,6.3054]
[1740012543664,0.04026315,2730.4,2730.1,6.3054]
[1740012544466,3.66183,2730.9,2730.1,9.96826]
[1740012544665,3.66183,2730.9,2730.3,3.6626]
[1740012544873,3.66183,2730.9,2730.4,0.7883]
[1740012545165,3.66182,2730.9,2730.4,0.7883]
[1740012546265,3.8033361,2731.1,2730.4,4.45075]
[1740012546466,3.8033361,2731.1,2730.5,3.6623]
[1740012546669,7.4649761,2731.1,2730.4,1.73374403]
[1740012546972,3.66169,2731.0,2730.4,5.39617403]
[1740012547171,3.66169,2731.0,2730.4,1.73374403]
[1740012547345,0.1417461,2731.1,2730.6,3.66218]
[1740012548148,0.1417461,2731.1,2730.7,3.66206]
[1740012548350,0.1417461,2731.1,2730.5,7.8641424]
[1740012548582,0.1417461,2731.1,2730.5,4.2018324]
[1740012548768,8.6541561,2731.4,2730.5,7.8640524]
[1740012548970,3.66141,2731.2,2730.6,4.52742524]
[1740012549471,8.6541561,2731.4,2730.6,4.52742524]
[1740012549472,8.6541561,2731.4,2730.7,4.42518]
[1740012550168,8.6540861,2731.4,2730.7,4.42515]
[1740012550371,3.66113,2731.4,2730.7,4.42515]
[1740012550876,3.66113,2731.4,2730.8,0.34090285]
[1740012551090,3.66113,2731.4,2730.8,0.90403166]
[1740012551240,3.66113,2731.4,2730.8,1.91938581]
[1740012551781,7.32235,2731.4,2730.8,1.17671333]
[1740012551954,3.66113,2731.4,2730.8,1.17671333]
[1740012552272,3.66113,2731.4,2730.8,0.90403166]
[1740012552486,3.66123,2731.4,2730.7,0.7632]
[1740012552666,3.66123,2731.4,2730.7,4.42518]
[1740012552867,3.66142,2731.2,2730.7,0.7632]
[1740012553468,3.66127,2731.3,2730.7,0.7632]
[1740012553663,3.66141,2731.2,2730.7,1.03583375]
[1740012553975,3.66127,2731.3,2730.7,1.74718409]
[1740012554177,3.66109,2731.5,2730.8,4.48051]
[1740012554384,3.6612,2731.4,2730.9,0.265]
[1740012555282,3.66134,2731.3,2730.9,0.81068603]
[1740012555489,3.66147,2731.2,2730.9,0.265]
[1740012556158,4.09604,2731.3,2730.9,0.265]
[1740012556363,3.66134,2731.3,2730.9,0.265]
[1740012556756,4.09575,2731.5,2730.9,0.265]
[1740012556961,3.66105,2731.5,2730.9,4.401261]
[1740012557155,4.9929561,2731.7,2731.3,3.66124]
[1740012557363,3.66001,2732.3,2731.4,3.661]
[1740012557556,3.66069,2731.8,2731.5,0.8207]
[1740012557781,3.6608,2731.7,2731.3,1.0794]
[1740012558495,3.66087,2731.6,2731.3,1.0794]
[1740012558859,3.66115,2731.4,2731.0,0.798]
[1740012559065,3.66115,2731.4,2731.0,1.064]
[1740012559267,0.03638206,2731.3,2731.0,1.064]
[1740012559887,3.66105,2731.5,2731.0,1.064]
[1740012560086,0.03638206,2731.2,2731.0,1.064]
[1740012560291,3.66127,2731.3,2731.0,1.064]
[1740012560499,0.03638206,2731.1,2731.0,1.064]
[1740012560674,3.66127,2731.3,2731.0,1.064]
[1740012560874,0.03638206,2731.1,2731.0,1.064]
[1740012561075,3.66127,2731.3,2731.0,1.064]
[1740012561275,0.03638206,2731.1,2731.0,1.064]
[1740012561473,3.66127,2731.3,2731.0,1.064]
[1740012561816,3.66127,2731.3,2730.7,0.8242]
[1740012561817,3.66162,2731.1,2730.7,0.8242]
[1740012562105,4.462097,2731.3,2730.7,0.8242]
[1740012562106,0.03638206,2731.0,2730.7,0.8242]
[1740012562511,3.66148,2731.2,2730.7,0.8242]
[1740012562690,0.03638206,2730.9,2730.7,0.8242]
[1740012562885,3.66154,2731.1,2730.7,1.299444]
[1740012563092,0.03638206,2730.8,2730.7,1.299444]
[1740012563267,3.66154,2731.1,2730.7,1.299444]
[1740012563467,0.03638206,2730.8,2730.7,1.299444]
[1740012563706,3.66154,2731.1,2730.7,1.299444]
[1740012564296,0.03638206,2731.0,2730.7,1.299444]
[1740012564672,0.03638206,2731.0,2730.7,0.8242]
[1740012565271,3.66145,2731.2,2730.7,0.8242]
[1740012565473,0.03638206,2730.9,2730.7,0.8242]
[1740012565675,3.66169,2731.0,2730.5,0.8278]
[1740012565876,0.03638206,2730.8,2730.6,0.266]
[1740012566190,0.03638206,2730.7,2730.6,1.269626]
[1740012566391,3.66169,2731.0,2730.5,1.0938]
[1740012566724,0.03638206,2730.9,2730.5,1.0938]
[1740012567396,3.69818206,2730.9,2730.5,1.0938]
[1740012568250,0.03638206,2730.9,2730.5,1.0938]
[1740012568449,3.66169,2731.0,2730.5,1.0938]
[1740012568751,0.03561315,2730.8,2730.5,1.49236109]
[1740012568949,3.66169,2731.0,2730.5,1.49236109]
[1740012569153,0.03561315,2730.7,2730.5,1.49236109]
[1740012569358,4.0965,2730.9,2730.2,0.7776]
[1740012569562,0.03561315,2730.6,2730.2,1.0426]
[1740012569701,3.66207,2730.7,2730.2,1.0426]
[1740012569902,0.03561315,2730.5,2730.2,1.58533179]
[1740012570200,0.03561315,2730.4,2730.2,1.58533179]
[1740012570417,3.66207,2730.7,2730.3,0.34086982]
[1740012570636,0.03561315,2730.6,2730.3,0.34086982]
[1740012571806,0.03561315,2730.6,2730.2,1.58533179]
[1740012573041,0.03561315,2730.6,2730.2,5.24799179]
[1740012573204,0.03561315,2730.6,2730.4,0.7627]
[1740012573536,0.4347,2731.1,2730.6,3.66211]
[1740012573837,4.9929561,2731.2,2730.6,0.7627]
[1740012574041,3.66152,2731.1,2730.6,0.7627]
[1740012575035,7.32263,2731.3,2730.6,4.42487]
[1740012575199,3.66129,2731.3,2730.6,5.26765795]
[1740012575408,3.66143,2731.2,2730.6,1.60548795]
[1740012576123,3.66143,2731.2,2730.6,0.7627]
[1740012576535,3.66129,2731.3,2730.6,0.7627]
[1740012576720,3.66129,2731.3,2730.7,3.66205]
[1740012577703,3.66129,2731.3,2730.8,3.6619]
[1740012577908,0.4347,2731.4,2730.8,3.6619]
[1740012578243,4.09591,2731.4,2730.9,0.7811]
[1740012579003,0.4347,2731.4,2730.9,0.7811]
[1740012579204,4.9929561,2731.5,2730.9,4.44288]
[1740012579420,8.6539661,2731.5,2730.9,4.44288]
[1740012579619,12.3150561,2731.5,2730.9,4.44288]
[1740012580032,0.4347,2731.6,2731.0,3.66164]
[1740012580223,0.4347,2731.8,2731.1,3.66143]
[1740012580422,4.09531,2731.8,2731.2,0.7811]
[1740012581042,0.4347,2731.8,2731.2,4.44243]
[1740012581340,3.6606,2731.8,2731.3,0.836886]
[1740012581541,8.6534661,2731.9,2731.2,0.7811]
[1740012581748,4.09503,2732.0,2731.3,7.32234]
[1740012582111,4.09503,2732.0,2731.4,0.8029]
[1740012582311,3.6605,2731.9,2731.4,0.8029]
[1740012583150,7.75546,2732.0,2731.4,0.8029]
[1740012583649,4.09503,2732.0,2731.4,0.8029]
[1740012583857,3.66061,2731.8,2731.4,0.8029]
[1740012584861,3.66089,2731.6,2731.2,0.8238]
[1740012585148,3.66061,2731.8,2731.2,0.8238]
[1740012585527,7.3213,2731.8,2731.2,0.8238]
[1740012585828,3.66077,2731.7,2731.2,0.8238]
[1740012586010,3.66061,2731.8,2731.2,0.8238]
[1740012586209,3.66073,2731.7,2731.2,0.8238]
[1740012587316,3.66061,2731.8,2731.2,0.8238]
[1740012587516,7.32131,2731.8,2731.2,0.8238]
[1740012587749,3.66061,2731.8,2731.2,0.8238]
[1740012589020,0.03462075,2731.7,2731.2,0.8238]
[1740012589452,7.56499258,2732.0,2731.2,0.8238]
[1740012589752,0.03481935,2731.6,2731.2,0.8238]
[1740012589957,4.97028442,2731.9,2731.2,0.8238]
[1740012590159,0.03481935,2731.5,2731.2,0.8238]
[1740012590341,11.22542258,2732.0,2731.2,4.48519]
[1740012590539,0.03481935,2731.4,2731.2,4.48519]
[1740012590753,11.22542258,2732.0,2731.2,4.960209]
[1740012590956,0.03481935,2731.3,2731.2,4.48519]
[1740012591163,11.22542258,2732.0,2731.2,4.48519]
[1740012591367,0.03481935,2731.3,2731.2,4.48519]
[1740012591531,3.66047,2731.9,2731.2,4.48519]
[1740012591733,0.03481935,2731.3,2731.2,4.48519]
[1740012591931,0.03481935,2731.3,2731.2,5.326373]
[1740012592169,3.66047,2731.9,2731.2,5.326373]
[1740012592370,0.03481935,2731.3,2731.2,4.48519]
[1740012592668,0.03481199,2731.3,2731.2,4.48519]
[1740012592863,3.66047,2731.9,2731.2,4.48519]
[1740012593064,3.66047,2731.9,2731.2,0.8238]
[1740012593570,0.03479731,2731.8,2731.2,0.8238]
[1740012594470,0.03479731,2731.8,2731.2,4.48519]
[1740012599876,3.66047,2731.9,2731.2,4.48519]
[1740012600042,5.33633842,2731.9,2731.2,4.48519]
[1740012601044,5.33633842,2731.9,2731.2,4.48511]
[1740012601350,5.33633842,2731.9,2731.2,8.14642]
[1740012601663,1.67586842,2731.9,2731.2,8.14642]
[1740012601869,1.67586842,2731.9,2731.3,3.66123]
[1740012602374,0.4347,2732.3,2731.5,0.8076]
[1740012602584,0.4347,2732.3,2731.6,3.66085]
[1740012602756,3.4347,2732.3,2731.7,3.66071]
[1740012602961,3.4347,2732.3,2731.6,3.66082]
[1740012603163,3.4347,2732.3,2731.7,3.66064]
[1740012605655,4.99043887,2732.3,2731.7,3.66064]
[1740012605856,4.99043887,2732.3,2731.5,4.46854]
[1740012606171,3.46994258,2732.1,2731.5,4.46854]
[1740012607008,3.46994258,2732.1,2731.6,3.66081]
[1740012607174,3.46994258,2732.1,2731.5,4.46854]
[1740012607378,3.46994258,2732.1,2731.5,5.35437577]
[1740012607707,3.0,2732.4,2731.8,0.8004]
[1740012608005,3.0,2732.4,2731.8,4.46089]
[1740012608468,3.0,2732.4,2731.8,0.8004]
[1740012608704,4.92167787,2732.4,2731.8,0.8004]
[1740012609582,4.92167787,2732.4,2731.8,4.46095]
[1740012610304,4.92167787,2732.4,2731.8,0.8004]
[1740012611598,0.4347,2732.2,2731.8,0.8004]
[1740012613905,0.4347,2732.2,2731.5,4.54675577]
[1740012614066,0.39046426,2732.1,2731.6,0.264]
[1740012614566,0.39046426,2732.1,2731.6,3.92478]
[1740012614760,0.4347,2732.2,2731.6,3.92478]
[1740012615097,0.4347,2732.2,2731.6,0.264]
[1740012615393,4.09477,2732.2,2731.6,0.264]
[1740012618510,4.09477,2732.2,2731.4,3.66109]
[1740012618912,0.4347,2732.1,2731.4,3.66109]
[1740012619220,1.69046687,2732.1,2731.3,4.45486]
[1740012619586,1.69046687,2732.1,2731.5,3.66091]
[1740012620304,7.13038258,2732.0,2731.3,0.7937]
[1740012620688,0.4347,2731.9,2731.3,0.7937]
[1740012620913,5.4276561,2731.9,2731.3,0.7937]
[1740012621187,5.4276561,2731.9,2731.3,4.45488]
[1740012622924,5.4276561,2731.9,2731.3,8.11606]
[1740012623124,5.4276561,2731.9,2731.3,4.45488]
[1740012623902,5.4276561,2731.9,2731.3,8.11606]
[1740012624228,5.4276561,2731.9,2731.3,4.45488]
[1740012625289,5.4276561,2731.9,2731.4,3.66112]
[1740012626126,5.4276561,2731.9,2731.3,8.11604]
[1740012626493,5.4276561,2731.9,2731.4,3.66111]
[1740012629213,5.4276561,2731.9,2731.3,4.45486]
[1740012629402,9.0881861,2731.9,2731.3,0.7937]
[1740012629732,7.17507966,2731.9,2731.3,4.45494]
[1740012629940,7.17507966,2731.9,2731.4,3.6611]
[1740012630438,7.17507966,2731.9,2731.3,4.45487]
[1740012631270,7.17507966,2731.9,2731.3,8.11603]
[1740012631440,7.17507966,2731.9,2731.4,3.6611]
[1740012631804,7.17507966,2731.9,2731.3,3.66116]
[1740012632004,10.83553966,2731.9,2731.3,3.66116]
[1740012632205,7.17507966,2731.9,2731.3,3.66116]
[1740012632407,7.17507966,2731.9,2731.3,7.32234]
[1740012632639,7.17507966,2731.9,2731.3,3.66116]
[1740012633041,7.17507966,2731.9,2731.3,7.32235]
[1740012633336,7.17507966,2731.9,2731.3,3.66116]
[1740012633658,7.17507966,2731.9,2731.4,3.66111]
[1740012634541,7.17507966,2731.9,2731.5,3.66097]
[1740012634840,1.67593002,2731.8,2731.5,3.66097]
[1740012635843,4.9929561,2731.9,2731.8,3.66059]
[1740012636845,2.11063002,2732.3,2731.7,3.66059]
[1740012637262,2.11063002,2732.6,2732.1,3.6601]
[1740012637411,2.11063002,2732.6,2732.1,5.218751]
[1740012637613,1.67593002,2732.4,2732.1,4.4867]
[1740012637821,1.67593002,2732.4,2732.1,3.6601]
[1740012638658,0.4347,2732.6,2732.1,3.6601]
[1740012639050,4.09422,2732.6,2731.9,4.73366]
[1740012639359,4.09422,2732.6,2731.9,5.23422968]
[1740012639659,4.09422,2732.6,2732.0,3.66031]
[1740012640654,3.65974,2732.5,2731.9,1.57386968]
[1740012641158,3.65974,2732.5,2731.9,5.23431968]
[1740012641711,3.65974,2732.5,2731.9,1.57386968]
[1740012642108,3.65974,2732.5,2731.6,3.66083]
[1740012642109,0.4347,2732.2,2731.7,0.264]
[1740012642313,0.4347,2732.2,2731.8,3.66056]
[1740012642921,0.4347,2732.2,2731.7,0.264]
[1740012643858,0.4347,2732.2,2731.7,3.92463]
[1740012644156,0.4347,2732.2,2731.8,3.66057]
[1740012646297,4.09476,2732.2,2731.7,0.9069803]
[1740012647363,0.4347,2732.2,2731.8,3.66058]
[1740012647559,0.4347,2732.2,2731.7,4.5676903]
[1740012648662,0.4347,2732.2,2731.8,3.66058]
[1740012649064,0.4347,2732.2,2731.7,0.9069803]
[1740012649240,0.4347,2732.2,2731.8,4.14372403]
[1740012649665,0.4347,2732.2,2731.6,3.92476]
[1740012649868,0.4347,2732.2,2731.5,0.7522]
[1740012649869,3.66041,2732.0,2731.3,3.92524]
[1740012650069,0.4347,2731.9,2731.3,3.92516]
[1740012650380,5.4276561,2732.1,2731.6,0.8081]
[1740012650583,5.4276561,2732.1,2731.6,4.46892]
[1740012650869,4.9929561,2732.1,2732.0,3.66032]
[1740012651167,0.4347,2732.4,2731.8,7.32099]
[1740012651375,0.4347,2732.4,2731.9,3.66045]
[1740012651865,0.4347,2732.4,2732.0,3.6603]
[1740012652073,0.4347,2732.4,2731.8,7.32099]
[1740012652279,0.4347,2732.4,2731.8,8.20563377]
[1740012652771,3.45512354,2732.3,2731.6,4.46886]
[1740012652974,0.4347,2732.2,2731.6,3.66076]
[1740012653374,0.4347,2732.2,2731.7,3.66071]
[1740012653740,0.4347,2732.2,2731.8,3.66058]
[1740012656688,0.4347,2732.2,2731.9,3.66045]
[1740012656978,0.4347,2732.4,2732.0,3.6603]
[1740012658174,0.4347,2732.4,2732.1,3.66014]
[1740012658376,0.4347,2732.4,2732.2,3.65994]
[1740012658684,0.4347,2732.6,2732.0,7.32044]
[1740012659349,0.4347,2732.6,2732.0,3.6602]
[1740012660447,3.65966,2732.5,2731.9,0.7696]
[1740012660661,3.65992,2732.3,2731.7,0.7848]
[1740012660857,3.65992,2732.3,2731.8,0.444557]
[1740012660858,3.66005,2732.2,2731.8,0.444557]
[1740012661083,3.66005,2732.2,2731.6,3.66077]
[1740012661084,0.4347,2732.1,2731.6,3.92477]
[1740012661460,0.4347,2732.1,2731.6,0.264]
[1740012661779,4.09489,2732.1,2731.4,4.838416]
[1740012661978,0.4347,2732.1,2731.6,3.66075]
[1740012662844,0.4347,2732.1,2731.7,3.66068]
[1740012663045,4.9929561,2732.2,2731.8,0.7956]
[1740012663461,4.9929561,2732.2,2731.9,3.66034]
[1740012663656,4.9929561,2732.2,2731.9,7.32066]
[1740012663878,4.9929561,2732.2,2731.9,3.66032]
[1740012664056,4.9929561,2732.2,2732.0,4.105862]
[1740012664385,4.09435,2732.5,2732.0,0.445592]
[1740012665169,0.4347,2732.5,2732.0,4.105882]
[1740012665884,0.4347,2732.5,2732.0,7.766122]
[1740012666061,0.4347,2732.5,2732.0,4.105832]
[1740012667572,0.4347,2732.5,2732.0,3.66024]
[1740012667765,0.4347,2732.5,2732.1,3.66016]
[1740012671090,0.4347,2732.5,2732.3,3.6599]
[1740012671250,0.4347,2732.8,2732.3,3.6599]
[1740012672090,0.4347,2732.8,2732.2,4.71752]
[1740012672620,4.09403,2732.8,2732.2,0.264]
[1740012672781,0.4347,2732.7,2732.0,0.264]
[1740012673088,0.4347,2732.5,2732.1,3.66017]
[1740012673279,0.4347,2732.5,2732.1,4.48297]
[1740012673477,3.6593,2732.8,2732.1,4.48297]
[1740012673683,0.4347,2732.7,2732.2,3.66005]
[1740012673990,0.4347,2732.7,2732.1,0.8228]
[1740012674194,3.65961,2732.6,2732.0,0.264]
[1740012674791,0.4347,2732.5,2732.0,0.264]
[1740012675094,4.09435,2732.5,2732.0,0.264]
[1740012675291,0.4347,2732.5,2732.0,3.9243]
[1740012675450,0.4347,2732.5,2732.1,0.47439]
[1740012675647,4.09435,2732.5,2732.0,0.264]
[1740012675848,4.09435,2732.5,2731.9,0.264]
[1740012676292,3.65981,2732.4,2731.9,0.264]
[1740012676448,3.88982354,2732.2,2731.3,0.773]
[1740012676651,0.4347,2732.0,2731.5,3.66098]
[1740012677264,0.4347,2732.0,2731.4,3.92504]
[1740012677490,0.4347,2732.0,2731.4,7.58606]
[1740012677665,0.4347,2732.0,2731.4,8.45008254]
[1740012678165,0.4347,2732.0,2731.5,3.66096]
[1740012678791,0.4347,2732.0,2731.4,4.78904254]
[1740012679090,4.09504,2732.0,2731.4,4.78904254]
[1740012679503,4.9929561,2732.2,2731.6,3.66074]
[1740012679653,4.9929561,2732.2,2731.7,3.66069]
[1740012682173,0.4347,2732.1,2731.5,0.264]
[1740012682371,4.0949,2732.1,2731.5,3.92495]
[1740012682597,0.4347,2732.1,2731.5,3.92495]
[1740012682785,0.4347,2732.1,2731.5,0.264]
[1740012683107,3.66034,2732.0,2731.5,0.264]
[1740012685423,3.66034,2732.0,2731.4,3.93295271]
[1740012686199,7.32075,2732.0,2731.4,3.93295271]
[1740012686617,7.32075,2732.0,2731.4,3.66109]
[1740012686942,3.66034,2732.0,2731.4,3.66109]
[1740012687242,3.66034,2732.0,2731.4,4.59699662]
[1740012688564,3.66034,2732.0,2731.4,4.59694662]
[1740012688859,0.4347,2732.1,2731.5,3.66096]
[1740012688860,4.09489,2732.1,2731.5,3.66096]
[1740012689344,4.09489,2732.1,2731.4,4.59694662]
[1740012689846,4.09489,2732.1,2731.6,3.66084]
[1740012690343,4.09489,2732.1,2731.5,3.66094]
[1740012690945,3.66039,2732.0,2731.4,4.59694662]
[1740012691160,4.0949,2732.1,2731.5,3.66091]
[1740012691353,0.4347,2732.1,2731.6,3.66077]
[1740012691584,4.9929561,2732.2,2731.7,0.7694]
[1740012691779,4.9929561,2732.2,2731.8,3.66058]
[1740012692204,4.9929561,2732.2,2731.9,3.66044]
[1740012693305,0.4347,2732.5,2732.0,0.7628]
[1740012693591,5.4276561,2732.9,2732.4,0.7628]
[1740012693805,3.0,2732.8,2732.4,0.7628]
[1740012694856,6.65927,2732.8,2732.4,0.7628]
[1740012695261,3.65942,2732.7,2732.4,0.7628]
[1740012695569,6.6593,2732.8,2732.2,0.7645]
[1740012696348,3.0,2732.8,2732.2,4.9299274]
[1740012698861,6.65927,2732.8,2732.2,4.9299274]
[1740012699300,3.0,2732.8,2732.2,4.9299274]